[Event "*** Qualifier 2: Titled Tuesday 3|2 Blitz"]
[Site "Chess.com"]
[Date "2017.04.11"]
[Round "2"]
[White "Th3ChessViking"]
[Black "Grebeniuk-S"]
[Result "0-1"]
[WhiteElo "2273"]
[BlackElo "2404"]
[TimeControl "180+2"]
[EndTime "13:22:32 PDT"]
[Termination "Grebeniuk-S won on time"]

1. c4 {[%clk 0:03:00]} 1... f5 {[%clk 0:02:59.1]} 2. g3 {[%clk 0:03:01.9]} 2...
Nf6 {[%clk 0:03:00.3]} 3. Bg2 {[%clk 0:03:03.3]} 3... g6 {[%clk 0:03:02.2]} 4.
Nf3 {[%clk 0:03:02.8]} 4... Bg7 {[%clk 0:03:03.8]} 5. O-O {[%clk 0:03:04.7]}
5... O-O {[%clk 0:03:05.4]} 6. Nc3 {[%clk 0:03:04.9]} 6... d6 {[%clk 0:03:07.3]}
7. d3 {[%clk 0:03:06.7]} 7... e5 {[%clk 0:03:06.7]} 8. Rb1 {[%clk 0:03:07.8]}
8... Nc6 {[%clk 0:03:06.5]} 9. b4 {[%clk 0:03:05.7]} 9... Ne7 {[%clk 0:03:08.4]}
10. c5 {[%clk 0:03:05.1]} 10... h6 {[%clk 0:03:02]} 11. cxd6 {[%clk 0:03:03.3]}
11... cxd6 {[%clk 0:03:03.2]} 12. Nd2 {[%clk 0:03:04.4]} 12... d5 {[%clk
0:03:00.5]} 13. b5 {[%clk 0:03:05.1]} 13... Be6 {[%clk 0:03:01.1]} 14. Ba3
{[%clk 0:03:05.1]} 14... Rf7 {[%clk 0:03:00.3]} 15. Na4 {[%clk 0:02:56.1]} 15...
b6 {[%clk 0:03:00.3]} 16. Nf3 {[%clk 0:02:46]} 16... Nd7 {[%clk 0:02:50.5]} 17.
Rc1 {[%clk 0:02:37]} 17... e4 {[%clk 0:02:43.9]} 18. dxe4 {[%clk 0:02:36.3]}
18... dxe4 {[%clk 0:02:45.8]} 19. Nd4 {[%clk 0:02:37.5]} 19... Bxa2 {[%clk
0:02:35.4]} 20. Rc2 {[%clk 0:02:38]} 20... Bd5 {[%clk 0:02:34.4]} 21. Rd2 {[%clk
0:02:23.5]} 21... Qe8 {[%clk 0:02:13.5]} 22. Bxe7 {[%clk 0:02:06.6]} 22... Qxe7
{[%clk 0:02:06.3]} 23. Nxf5 {[%clk 0:02:06.9]} 23... gxf5 {[%clk 0:01:56.7]} 24.
Rxd5 {[%clk 0:02:07.9]} 24... Raf8 {[%clk 0:01:33.3]} 25. Qb3 {[%clk 0:02:07.7]}
25... Kh8 {[%clk 0:01:27.8]} 26. Rfd1 {[%clk 0:02:02.3]} 26... Ne5 {[%clk
0:01:29.2]} 27. e3 {[%clk 0:01:35.6]} 27... Nd3 {[%clk 0:01:28.4]} 28. Bf1
{[%clk 0:01:33.3]} 28... Ne5 {[%clk 0:01:28.3]} 29. Be2 {[%clk 0:01:33.9]} 29...
Qg5 {[%clk 0:01:24.8]} 30. Nb2 {[%clk 0:01:23.7]} 30... Rc7 {[%clk 0:01:09.9]}
31. h4 {[%clk 0:00:59]} 31... Qe7 {[%clk 0:01:08.7]} 32. Nc4 {[%clk 0:00:57.7]}
32... Nxc4 {[%clk 0:01:03.9]} 33. Bxc4 {[%clk 0:00:59.6]} 33... f4 {[%clk
0:00:59.8]} 34. exf4 {[%clk 0:00:54.3]} 34... e3 {[%clk 0:01:00.7]} 35. fxe3
{[%clk 0:00:48.3]} 35... Rfc8 {[%clk 0:00:57.5]} 36. Bf1 {[%clk 0:00:31.7]}
36... Rc3 {[%clk 0:00:58.2]} 37. Qb1 {[%clk 0:00:23.6]} 37... Qxe3+ {[%clk
0:00:59.1]} 38. Kh1 {[%clk 0:00:24.9]} 38... Qxg3 {[%clk 0:00:18.2]} 39. Rd8+
{[%clk 0:00:23]} 39... Bf8 {[%clk 0:00:19.5]} 40. Qf5 {[%clk 0:00:12]} 40...
Qxh4+ {[%clk 0:00:18.9]} 41. Kg1 {[%clk 0:00:11.9]} 41... Rxd8 {[%clk
0:00:18.7]} 0-1

[Event "*** Qualifier 2: Titled Tuesday 3|2 Blitz"]
[Site "Chess.com"]
[Date "2017.04.11"]
[Round "2"]
[White "Feegus"]
[Black "kleinebeer98"]
[Result "1-0"]
[WhiteElo "2371"]
[BlackElo "2482"]
[TimeControl "180+2"]
[EndTime "13:22:40 PDT"]
[Termination "Feegus won by resignation"]

1. d4 {[%clk 0:03:00.8]} 1... Nf6 {[%clk 0:02:59]} 2. Bf4 {[%clk 0:03:01.6]}
2... e6 {[%clk 0:02:59.9]} 3. e3 {[%clk 0:03:02.9]} 3... c5 {[%clk 0:03:01.4]}
4. c3 {[%clk 0:03:03.8]} 4... Nc6 {[%clk 0:03:02.9]} 5. Nd2 {[%clk 0:03:04.3]}
5... b6 {[%clk 0:03:03.5]} 6. Ngf3 {[%clk 0:03:05.1]} 6... Bb7 {[%clk 0:03:05]}
7. h3 {[%clk 0:03:06.6]} 7... Be7 {[%clk 0:03:06.2]} 8. Bd3 {[%clk 0:03:07.5]}
8... h6 {[%clk 0:03:07.6]} 9. O-O {[%clk 0:03:08.4]} 9... O-O {[%clk 0:03:08.5]}
10. e4 {[%clk 0:03:05.1]} 10... cxd4 {[%clk 0:03:03.8]} 11. cxd4 {[%clk
0:03:06]} 11... Nb4 {[%clk 0:03:02.4]} 12. Bb1 {[%clk 0:03:06.8]} 12... Ba6
{[%clk 0:03:03.7]} 13. Re1 {[%clk 0:03:06.6]} 13... Nd3 {[%clk 0:03:05.3]} 14.
Bxd3 {[%clk 0:03:02.2]} 14... Bxd3 {[%clk 0:03:07.2]} 15. Qb3 {[%clk 0:03:02.2]}
15... Ba6 {[%clk 0:03:06.2]} 16. Rac1 {[%clk 0:03:02.9]} 16... Rc8 {[%clk
0:03:01.8]} 17. Rc3 {[%clk 0:02:58.7]} 17... d5 {[%clk 0:02:57.8]} 18. e5 {[%clk
0:02:53.4]} 18... Ne4 {[%clk 0:02:56.6]} 19. Nxe4 {[%clk 0:02:48.2]} 19... dxe4
{[%clk 0:02:58.5]} 20. Rxe4 {[%clk 0:02:49.4]} 20... Bb7 {[%clk 0:02:59]} 21.
Ree3 {[%clk 0:02:47.4]} 21... Qd7 {[%clk 0:02:52]} 22. Rcd3 {[%clk 0:02:31.4]}
22... Bd5 {[%clk 0:02:48.6]} 23. Qd1 {[%clk 0:02:26.7]} 23... a5 {[%clk
0:02:43.7]} 24. b3 {[%clk 0:02:23.6]} 24... Rc7 {[%clk 0:02:36.5]} 25. Kh2
{[%clk 0:02:22]} 25... Rfc8 {[%clk 0:02:37.3]} 26. Nd2 {[%clk 0:02:23.3]} 26...
Kf8 {[%clk 0:01:03.7]} 27. Qh5 {[%clk 0:02:20.8]} 27... Ke8 {[%clk 0:01:01.4]}
28. Rg3 {[%clk 0:02:20.2]} 28... Bf8 {[%clk 0:00:58.2]} 29. Bxh6 {[%clk
0:02:00.8]} 29... gxh6 {[%clk 0:00:58.9]} 30. Rg8 {[%clk 0:02:01.5]} 30... Qe7
{[%clk 0:00:52]} 31. Nc4 {[%clk 0:01:28.2]} 31... Bxc4 {[%clk 0:00:36]} 32. bxc4
{[%clk 0:01:29.1]} 32... Rxc4 {[%clk 0:00:37.9]} 33. d5 {[%clk 0:01:30.2]} 33...
exd5 {[%clk 0:00:39.8]} 34. Rxd5 {[%clk 0:01:31.1]} 34... R4c5 {[%clk
0:00:36.3]} 35. Rxc5 {[%clk 0:00:44]} 35... Rxc5 {[%clk 0:00:38.2]} 36. f4
{[%clk 0:00:45.4]} 36... Qe6 {[%clk 0:00:26.3]} 37. Qf3 {[%clk 0:00:22.8]} 37...
Qd5 {[%clk 0:00:27.2]} 38. Qg4 {[%clk 0:00:24.1]} 38... Qe4 {[%clk 0:00:08.4]}
39. e6 {[%clk 0:00:15.2]} 39... Qxe6 {[%clk 0:00:07.9]} 40. Qg7 {[%clk
0:00:16.4]} 40... Qe7 {[%clk 0:00:09.2]} 41. Qxh6 {[%clk 0:00:16.8]} 41... Rc8
{[%clk 0:00:03.4]} 42. Qxb6 {[%clk 0:00:17]} 42... Qd7 {[%clk 0:00:04.6]} 43.
Qe3+ {[%clk 0:00:16.6]} 43... Kd8 {[%clk 0:00:05.5]} 44. Rxf8+ {[%clk 0:00:17]}
44... Kc7 {[%clk 0:00:06.8]} 45. Qc3+ {[%clk 0:00:17.7]} 45... Kb7 {[%clk
0:00:05.7]} 46. Rxc8 {[%clk 0:00:19]} 1-0

[Event "*** Qualifier 2: Titled Tuesday 3|2 Blitz"]
[Site "Chess.com"]
[Date "2017.04.11"]
[Round "2"]
[White "Marcus_Harvey"]
[Black "GeorgMeier"]
[Result "0-1"]
[WhiteElo "2493"]
[BlackElo "2709"]
[TimeControl "180+2"]
[EndTime "13:22:55 PDT"]
[Termination "GeorgMeier won by resignation"]

1. Nf3 {[%clk 0:03:02]} 1... d5 {[%clk 0:03:01]} 2. b3 {[%clk 0:03:03.3]} 2...
Bf5 {[%clk 0:02:58.7]} 3. Bb2 {[%clk 0:03:04.3]} 3... e6 {[%clk 0:03:00.4]} 4.
e3 {[%clk 0:03:05.7]} 4... h6 {[%clk 0:03:01.7]} 5. Be2 {[%clk 0:03:07.1]} 5...
Nf6 {[%clk 0:03:02.9]} 6. O-O {[%clk 0:03:08.3]} 6... Bd6 {[%clk 0:03:03.2]} 7.
c4 {[%clk 0:03:09.4]} 7... c6 {[%clk 0:03:04.2]} 8. Nc3 {[%clk 0:03:09.6]} 8...
O-O {[%clk 0:03:05.2]} 9. d4 {[%clk 0:03:10.1]} 9... Nbd7 {[%clk 0:03:06.2]} 10.
Qc1 {[%clk 0:03:08.6]} 10... Qe7 {[%clk 0:03:05.9]} 11. h3 {[%clk 0:03:06.9]}
11... a6 {[%clk 0:03:05.7]} 12. a4 {[%clk 0:03:04.5]} 12... Ne4 {[%clk
0:03:04.9]} 13. Nxe4 {[%clk 0:03:01.4]} 13... Bxe4 {[%clk 0:03:04]} 14. Nd2
{[%clk 0:02:59]} 14... Bg6 {[%clk 0:03:04.4]} 15. a5 {[%clk 0:02:55.5]} 15... e5
{[%clk 0:03:02]} 16. Ba3 {[%clk 0:02:48.4]} 16... exd4 {[%clk 0:03:00.8]} 17.
Bxd6 {[%clk 0:02:42.7]} 17... Qxd6 {[%clk 0:03:01.5]} 18. exd4 {[%clk
0:02:44.3]} 18... Rfe8 {[%clk 0:02:56.1]} 19. Bf3 {[%clk 0:02:44.4]} 19... Nf8
{[%clk 0:02:55.7]} 20. cxd5 {[%clk 0:02:37.7]} 20... cxd5 {[%clk 0:02:57]} 21.
Qc5 {[%clk 0:02:38.5]} 21... Rad8 {[%clk 0:02:52.4]} 22. Qxd6 {[%clk 0:02:38.5]}
22... Rxd6 {[%clk 0:02:54.3]} 23. b4 {[%clk 0:02:38.7]} 23... Ne6 {[%clk
0:02:52.8]} 24. Nb3 {[%clk 0:02:38.4]} 24... Be4 {[%clk 0:02:51.1]} 25. Bxe4
{[%clk 0:02:29.2]} 25... dxe4 {[%clk 0:02:52.3]} 26. Rfd1 {[%clk 0:02:21.9]}
26... Nf4 {[%clk 0:02:50.4]} 27. Nc5 {[%clk 0:02:19.8]} 27... Rg6 {[%clk
0:02:26]} 28. g3 {[%clk 0:02:13.7]} 28... e3 {[%clk 0:02:27]} 29. Kh2 {[%clk
0:02:09.7]} 29... Nd5 {[%clk 0:02:20.2]} 30. fxe3 {[%clk 0:02:10]} 30... Rxe3
{[%clk 0:02:17.7]} 31. Re1 {[%clk 0:01:05]} 31... Rgxg3 {[%clk 0:01:54.7]} 32.
Rxe3 {[%clk 0:01:04.6]} 32... Rxe3 {[%clk 0:01:56.6]} 33. b5 {[%clk 0:01:04.7]}
33... axb5 {[%clk 0:01:41]} 34. Nxb7 {[%clk 0:01:05.6]} 34... b4 {[%clk
0:01:39]} 35. a6 {[%clk 0:01:04.8]} 35... Ra3 {[%clk 0:01:40.1]} 36. Rxa3 {[%clk
0:00:50.5]} 36... bxa3 {[%clk 0:01:41.4]} 37. a7 {[%clk 0:00:52]} 37... Nb6
{[%clk 0:01:42.3]} 38. Nc5 {[%clk 0:00:48.8]} 38... a2 {[%clk 0:01:40.5]} 39.
Nb3 {[%clk 0:00:49.9]} 39... f5 {[%clk 0:01:24.2]} 40. Kg3 {[%clk 0:00:48.8]}
40... g5 {[%clk 0:01:25.3]} 41. Kf3 {[%clk 0:00:43.3]} 41... Kf7 {[%clk
0:01:26.4]} 42. Ke3 {[%clk 0:00:31.8]} 42... Ke6 {[%clk 0:01:25.2]} 43. Kd3
{[%clk 0:00:31.9]} 43... Kd5 {[%clk 0:01:17.4]} 44. Kc2 {[%clk 0:00:32.2]} 44...
h5 {[%clk 0:01:15.5]} 45. Kb2 {[%clk 0:00:32.4]} 45... h4 {[%clk 0:01:16.2]} 46.
Nc5 {[%clk 0:00:22.2]} 46... Na8 {[%clk 0:00:55]} 47. Nd7 {[%clk 0:00:12.1]}
47... Kxd4 {[%clk 0:00:54.6]} 48. Nf6 {[%clk 0:00:08.9]} 48... Ke5 {[%clk
0:00:51.3]} 49. Nd7+ {[%clk 0:00:08]} 49... Kd6 {[%clk 0:00:42.4]} 50. Nf6
{[%clk 0:00:07.5]} 50... Ke6 {[%clk 0:00:41.3]} 51. Nh5 {[%clk 0:00:03.8]} 51...
Ke5 {[%clk 0:00:39.1]} 52. Kxa2 {[%clk 0:00:05.1]} 52... g4 {[%clk 0:00:40.5]}
53. hxg4 {[%clk 0:00:06.7]} 53... fxg4 {[%clk 0:00:41.7]} 54. Kb3 {[%clk
0:00:07.9]} 54... g3 {[%clk 0:00:42.7]} 0-1

[Event "*** Qualifier 2: Titled Tuesday 3|2 Blitz"]
[Site "Chess.com"]
[Date "2017.04.11"]
[Round "2"]
[White "FancyPlaySyndrome"]
[Black "Dulger"]
[Result "1-0"]
[WhiteElo "2397"]
[BlackElo "2269"]
[TimeControl "180+2"]
[EndTime "13:23:09 PDT"]
[Termination "FancyPlaySyndrome won by resignation"]

1. e4 {[%clk 0:03:02]} 1... c5 {[%clk 0:03:00.7]} 2. Nf3 {[%clk 0:03:02.5]} 2...
d6 {[%clk 0:03:00.7]} 3. d4 {[%clk 0:03:03.6]} 3... cxd4 {[%clk 0:03:02.6]} 4.
Nxd4 {[%clk 0:03:05.3]} 4... Nf6 {[%clk 0:03:04.2]} 5. Nc3 {[%clk 0:03:07]} 5...
a6 {[%clk 0:03:05.7]} 6. Be3 {[%clk 0:03:08.6]} 6... e6 {[%clk 0:03:07.1]} 7. f3
{[%clk 0:03:09.2]} 7... b5 {[%clk 0:03:08.6]} 8. Qd2 {[%clk 0:03:10.9]} 8... Bb7
{[%clk 0:03:09.6]} 9. O-O-O {[%clk 0:03:12.3]} 9... Nbd7 {[%clk 0:03:11.1]} 10.
Kb1 {[%clk 0:03:11.2]} 10... Nb6 {[%clk 0:03:11.4]} 11. Qf2 {[%clk 0:03:11]}
11... Nfd7 {[%clk 0:03:11.5]} 12. g4 {[%clk 0:03:06.7]} 12... Be7 {[%clk
0:03:12]} 13. h4 {[%clk 0:03:07.5]} 13... Rc8 {[%clk 0:03:07.7]} 14. a3 {[%clk
0:03:04.8]} 14... Rxc3 {[%clk 0:03:08.1]} 15. bxc3 {[%clk 0:03:05.5]} 15... Na4
{[%clk 0:03:07.7]} 16. Qe1 {[%clk 0:03:05.2]} 16... Qc7 {[%clk 0:03:03.2]} 17.
Bd2 {[%clk 0:03:04.3]} 17... d5 {[%clk 0:02:44.1]} 18. Bd3 {[%clk 0:03:00.9]}
18... Qc5 {[%clk 0:02:27.7]} 19. Nb3 {[%clk 0:02:44.2]} 19... Qxa3 {[%clk
0:02:26.2]} 20. Bc1 {[%clk 0:02:45.9]} 20... Qd6 {[%clk 0:02:23]} 21. Bb2 {[%clk
0:02:37.3]} 21... Nxb2 {[%clk 0:02:17.9]} 22. Kxb2 {[%clk 0:02:39.2]} 22... Nb6
{[%clk 0:02:19.5]} 23. Ra1 {[%clk 0:02:39.4]} 23... Bf6 {[%clk 0:02:14.5]} 24.
g5 {[%clk 0:02:36.1]} 24... Na4+ {[%clk 0:02:14.7]} 25. Rxa4 {[%clk 0:02:25.9]}
25... bxa4 {[%clk 0:02:16.6]} 26. Nd4 {[%clk 0:02:24.2]} 26... Qb6+ {[%clk
0:01:58.7]} 27. Ka2 {[%clk 0:02:09.1]} 27... Bxd4 {[%clk 0:01:18.7]} 28. cxd4
{[%clk 0:02:09.6]} 28... Qxd4 {[%clk 0:01:20.6]} 29. Qb1 {[%clk 0:02:07.8]}
29... Qa7 {[%clk 0:01:21.6]} 30. Qb4 {[%clk 0:02:07.4]} 30... Bc6 {[%clk
0:00:57.6]} 31. Rb1 {[%clk 0:02:02.9]} 31... Kd7 {[%clk 0:00:56.9]} 32. Qc3
{[%clk 0:01:55.5]} 32... d4 {[%clk 0:00:46.3]} 33. Qa5 {[%clk 0:01:55.3]} 33...
Rc8 {[%clk 0:00:42.6]} 34. Rb4 {[%clk 0:01:45.3]} 34... f6 {[%clk 0:00:38.6]}
35. gxf6 {[%clk 0:01:35.7]} 35... gxf6 {[%clk 0:00:40.5]} 36. Qh5 {[%clk
0:01:37.3]} 36... Kd6 {[%clk 0:00:33.4]} 37. f4 {[%clk 0:01:17]} 37... Qc5
{[%clk 0:00:33.9]} 38. e5+ {[%clk 0:01:13.2]} 38... fxe5 {[%clk 0:00:34.9]} 39.
fxe5+ {[%clk 0:01:15.1]} 39... Qxe5 {[%clk 0:00:36.1]} 40. Qg4 {[%clk
0:01:06.2]} 40... Bd5+ {[%clk 0:00:30.5]} 41. Kb2 {[%clk 0:00:59.7]} 41... Kc5
{[%clk 0:00:19.2]} 42. Rxa4 {[%clk 0:00:53.6]} 42... Rb8+ {[%clk 0:00:18.5]} 43.
Ka3 {[%clk 0:00:53.1]} 43... Rb6 {[%clk 0:00:06.6]} 44. Qg8 {[%clk 0:00:48.2]}
44... Qd6 {[%clk 0:00:05.4]} 45. Qc8+ {[%clk 0:00:40.9]} 45... Bc6 {[%clk
0:00:06.7]} 46. Ka2 {[%clk 0:00:32.1]} 46... Qd5+ {[%clk 0:00:06.8]} 47. Rc4+
{[%clk 0:00:33.2]} 47... Kd6 {[%clk 0:00:08]} 48. Qd8+ {[%clk 0:00:33.2]} 48...
Ke5 {[%clk 0:00:08.6]} 49. Qxb6 {[%clk 0:00:34.4]} 49... Bb5 {[%clk 0:00:10.1]}
50. Kb3 {[%clk 0:00:27.7]} 50... a5 {[%clk 0:00:09.6]} 51. Qc5 {[%clk 0:00:25]}
51... Bxc4+ {[%clk 0:00:08.6]} 52. Qxc4 {[%clk 0:00:25.5]} 52... a4+ {[%clk
0:00:10.1]} 53. Kxa4 {[%clk 0:00:25.9]} 53... Qd7+ {[%clk 0:00:11]} 54. Qb5+
{[%clk 0:00:26.7]} 54... Qxb5+ {[%clk 0:00:12.5]} 55. Kxb5 {[%clk 0:00:28.6]}
55... h6 {[%clk 0:00:13.2]} 56. Kc5 {[%clk 0:00:29.3]} 1-0

[Event "*** Qualifier 2: Titled Tuesday 3|2 Blitz"]
[Site "Chess.com"]
[Date "2017.04.11"]
[Round "2"]
[White "donotreadit"]
[Black "jcgs1030"]
[Result "1-0"]
[WhiteElo "2513"]
[BlackElo "2292"]
[TimeControl "180+2"]
[EndTime "13:23:11 PDT"]
[Termination "donotreadit won by resignation"]

1. d4 {[%clk 0:03:02]} 1... Nf6 {[%clk 0:03:00]} 2. c4 {[%clk 0:03:01.1]} 2...
c5 {[%clk 0:03:00.8]} 3. Nf3 {[%clk 0:03:02]} 3... cxd4 {[%clk 0:03:01]} 4. Nxd4
{[%clk 0:03:03.9]} 4... g6 {[%clk 0:03:02.2]} 5. Nc3 {[%clk 0:03:04.3]} 5... Bg7
{[%clk 0:03:03.4]} 6. e4 {[%clk 0:03:05.5]} 6... d6 {[%clk 0:03:03.3]} 7. Be2
{[%clk 0:03:05.4]} 7... O-O {[%clk 0:03:03.8]} 8. Be3 {[%clk 0:03:06.3]} 8...
Nc6 {[%clk 0:03:05.2]} 9. O-O {[%clk 0:03:07.5]} 9... Bd7 {[%clk 0:03:06.5]} 10.
Rc1 {[%clk 0:03:08.6]} 10... Nxd4 {[%clk 0:03:05.2]} 11. Bxd4 {[%clk 0:03:09.4]}
11... Bc6 {[%clk 0:03:06.7]} 12. f3 {[%clk 0:03:10.7]} 12... a5 {[%clk
0:03:07.4]} 13. Qd2 {[%clk 0:03:09.3]} 13... Nd7 {[%clk 0:03:08.8]} 14. Be3
{[%clk 0:03:06.3]} 14... Nc5 {[%clk 0:03:07.5]} 15. b3 {[%clk 0:03:04.7]} 15...
Qb6 {[%clk 0:03:06.8]} 16. Rc2 {[%clk 0:03:01.7]} 16... Rfc8 {[%clk 0:03:07.1]}
17. Rb1 {[%clk 0:02:57.4]} 17... Qd8 {[%clk 0:02:53.6]} 18. g3 {[%clk
0:02:55.9]} 18... h5 {[%clk 0:02:52.1]} 19. Bf1 {[%clk 0:02:56.4]} 19... Kh7
{[%clk 0:02:52.5]} 20. Bh3 {[%clk 0:02:56.4]} 20... Rc7 {[%clk 0:02:43.4]} 21.
Rbc1 {[%clk 0:02:54.1]} 21... Qf8 {[%clk 0:02:34.7]} 22. Bg2 {[%clk 0:02:49.3]}
22... Bh6 {[%clk 0:02:34.5]} 23. f4 {[%clk 0:02:47]} 23... Bg7 {[%clk
0:02:34.7]} 24. h3 {[%clk 0:02:44.9]} 24... Bxc3 {[%clk 0:02:27.8]} 25. Qxc3
{[%clk 0:02:45.9]} 25... Nxe4 {[%clk 0:02:27.6]} 26. Bxe4 {[%clk 0:02:44.9]}
26... Bxe4 {[%clk 0:02:29.5]} 27. Re2 {[%clk 0:02:45.2]} 27... Bf5 {[%clk
0:02:19.8]} 28. Kh2 {[%clk 0:02:41.3]} 28... b5 {[%clk 0:02:16.5]} 29. Bb6
{[%clk 0:02:35.5]} 29... Rc6 {[%clk 0:02:16.1]} 30. c5 {[%clk 0:02:12.7]} 30...
dxc5 {[%clk 0:02:06.2]} 31. Bxc5 {[%clk 0:02:14.6]} 31... Rac8 {[%clk
0:01:43.5]} 32. b4 {[%clk 0:02:09]} 32... Qe8 {[%clk 0:01:22]} 33. a3 {[%clk
0:02:07.6]} 33... axb4 {[%clk 0:01:23.4]} 34. axb4 {[%clk 0:02:08.3]} 34... e6
{[%clk 0:01:23.6]} 35. Qf3 {[%clk 0:02:06.5]} 35... Rd8 {[%clk 0:01:09]} 36. g4
{[%clk 0:02:02.1]} 36... hxg4 {[%clk 0:01:07.6]} 37. hxg4 {[%clk 0:02:02.7]}
37... Bd3 {[%clk 0:01:07.9]} 38. Rd2 {[%clk 0:02:00.2]} 38... Bc4 {[%clk
0:00:59.9]} 39. Qh3+ {[%clk 0:01:55.7]} 39... Kg7 {[%clk 0:00:49.5]} 40. Bd4+
{[%clk 0:01:55.4]} 40... e5 {[%clk 0:00:46.2]} 41. Bxe5+ {[%clk 0:01:20.2]}
41... f6 {[%clk 0:00:46.4]} 42. Rxd8 {[%clk 0:01:00.5]} 42... Qxd8 {[%clk
0:00:46.9]} 43. Bc3 {[%clk 0:01:02.1]} 43... Qd6 {[%clk 0:00:46.3]} 44. Qg3
{[%clk 0:00:53.6]} 44... Rc8 {[%clk 0:00:46.3]} 45. g5 {[%clk 0:00:47]} 45...
Rh8+ {[%clk 0:00:46.1]} 46. Kg2 {[%clk 0:00:48.5]} 46... Bd5+ {[%clk 0:00:37.6]}
47. Kf2 {[%clk 0:00:47.7]} 47... Qb6+ {[%clk 0:00:35.9]} 48. Ke2 {[%clk
0:00:45.6]} 48... Bc4+ {[%clk 0:00:26.1]} 49. Kd2 {[%clk 0:00:40]} 49... Rd8+
{[%clk 0:00:25.3]} 50. Kc2 {[%clk 0:00:41.4]} 50... Rd3 {[%clk 0:00:19.9]} 51.
gxf6+ {[%clk 0:00:35.8]} 51... Kf7 {[%clk 0:00:20.2]} 52. Qh2 {[%clk 0:00:37.4]}
52... Qe3 {[%clk 0:00:13.3]} 53. Qh7+ {[%clk 0:00:32.3]} 53... Ke6 {[%clk
0:00:14.8]} 54. Qe7+ {[%clk 0:00:31.9]} 54... Kf5 {[%clk 0:00:16.4]} 55. Qe5+
{[%clk 0:00:29.4]} 55... Kg4 {[%clk 0:00:14.8]} 56. Qg5+ {[%clk 0:00:28.8]}
56... Kf3 {[%clk 0:00:15.9]} 57. Rf1+ {[%clk 0:00:29.8]} 57... Ke2 {[%clk
0:00:16.9]} 58. Qg2+ {[%clk 0:00:30.3]} 1-0

[Event "*** Qualifier 2: Titled Tuesday 3|2 Blitz"]
[Site "Chess.com"]
[Date "2017.04.11"]
[Round "2"]
[White "PelinGorki"]
[Black "Cecile_Haussernot"]
[Result "0-1"]
[WhiteElo "2366"]
[BlackElo "2274"]
[TimeControl "180+2"]
[EndTime "13:23:12 PDT"]
[Termination "Cecile_Haussernot won by resignation"]

1. e4 {[%clk 0:03:02]} 1... c5 {[%clk 0:03:00.1]} 2. Nf3 {[%clk 0:03:02.1]} 2...
d6 {[%clk 0:02:58.8]} 3. d4 {[%clk 0:03:03.5]} 3... cxd4 {[%clk 0:02:58.8]} 4.
Nxd4 {[%clk 0:03:05.4]} 4... Nf6 {[%clk 0:02:58.2]} 5. Nc3 {[%clk 0:03:06.7]}
5... a6 {[%clk 0:02:59]} 6. Bg5 {[%clk 0:03:07.4]} 6... e6 {[%clk 0:02:55]} 7.
f4 {[%clk 0:03:08.3]} 7... Be7 {[%clk 0:02:53.2]} 8. Qf3 {[%clk 0:03:09]} 8...
Nc6 {[%clk 0:02:45.2]} 9. O-O-O {[%clk 0:03:10.1]} 9... Nxd4 {[%clk 0:02:40.2]}
10. Rxd4 {[%clk 0:03:09.6]} 10... Qb6 {[%clk 0:02:23]} 11. Rd1 {[%clk
0:03:07.1]} 11... Bd7 {[%clk 0:02:22.2]} 12. e5 {[%clk 0:03:05.1]} 12... dxe5
{[%clk 0:02:12.1]} 13. fxe5 {[%clk 0:03:05.7]} 13... Bc6 {[%clk 0:02:12.9]} 14.
Qh3 {[%clk 0:02:45.7]} 14... Nd5 {[%clk 0:02:07.4]} 15. Bxe7 {[%clk 0:02:33.9]}
15... Nxe7 {[%clk 0:02:08]} 16. Bd3 {[%clk 0:02:18]} 16... Qc7 {[%clk
0:02:00.9]} 17. Rhe1 {[%clk 0:02:18.1]} 17... O-O-O {[%clk 0:01:54.4]} 18. Qg4
{[%clk 0:02:12.7]} 18... g6 {[%clk 0:01:44.4]} 19. Qg5 {[%clk 0:02:00]} 19...
Rd4 {[%clk 0:01:27.2]} 20. Be4 {[%clk 0:01:41.5]} 20... Rxd1+ {[%clk 0:01:19.8]}
21. Rxd1 {[%clk 0:01:43.4]} 21... Rd8 {[%clk 0:01:20.6]} 22. Rf1 {[%clk
0:01:29.5]} 22... Nf5 {[%clk 0:01:18.1]} 23. Qf4 {[%clk 0:00:46.3]} 23... Rd4
{[%clk 0:01:15.3]} 24. Re1 {[%clk 0:00:47.4]} 24... f6 {[%clk 0:01:10]} 25. g4
{[%clk 0:00:44.8]} 25... fxe5 {[%clk 0:01:08.8]} 26. Qf2 {[%clk 0:00:43.2]}
26... Bxe4 {[%clk 0:01:09.7]} 27. Rxe4 {[%clk 0:00:41.4]} 27... Rxe4 {[%clk
0:01:06.3]} 28. Nxe4 {[%clk 0:00:43.3]} 28... Qc6 {[%clk 0:01:01.9]} 29. gxf5
{[%clk 0:00:42.1]} 29... Qxe4 {[%clk 0:01:01.5]} 30. f6 {[%clk 0:00:39]} 30...
Qh1+ {[%clk 0:00:59.2]} 31. Kd2 {[%clk 0:00:40]} 31... Qd5+ {[%clk 0:00:58.9]}
32. Ke2 {[%clk 0:00:37.7]} 32... Qc4+ {[%clk 0:00:57.5]} 33. Kf3 {[%clk
0:00:32.6]} 33... Kd7 {[%clk 0:00:56.1]} 34. Qb6 {[%clk 0:00:25.9]} 34... Qf4+
{[%clk 0:00:54.1]} 35. Kg2 {[%clk 0:00:25.6]} 35... Qg4+ {[%clk 0:00:44.7]} 36.
Kf2 {[%clk 0:00:26.8]} 36... Qd4+ {[%clk 0:00:42]} 37. Qxd4+ {[%clk 0:00:27.7]}
37... exd4 {[%clk 0:00:43.2]} 38. Kf3 {[%clk 0:00:28.9]} 38... Ke8 {[%clk
0:00:39.2]} 39. Ke4 {[%clk 0:00:29.8]} 39... Kf7 {[%clk 0:00:36.9]} 40. Kxd4
{[%clk 0:00:30.7]} 40... Kxf6 {[%clk 0:00:37.5]} 41. a4 {[%clk 0:00:28.2]} 41...
e5+ {[%clk 0:00:31.7]} 42. Ke4 {[%clk 0:00:27.3]} 42... Ke6 {[%clk 0:00:31.8]}
43. b4 {[%clk 0:00:22.9]} 43... g5 {[%clk 0:00:31]} 44. c4 {[%clk 0:00:21]}
44... g4 {[%clk 0:00:31.6]} 45. Ke3 {[%clk 0:00:20.3]} 45... h5 {[%clk
0:00:29.7]} 46. Kf2 {[%clk 0:00:21.4]} 46... h4 {[%clk 0:00:26.6]} 47. Kg2
{[%clk 0:00:20.2]} 47... e4 {[%clk 0:00:26.1]} 48. Kf2 {[%clk 0:00:19.8]} 48...
Ke5 {[%clk 0:00:21.1]} 49. Kf1 {[%clk 0:00:18.8]} 49... Kd4 {[%clk 0:00:20.8]}
50. c5 {[%clk 0:00:19.2]} 50... Kc4 {[%clk 0:00:15.7]} 0-1